bitfinex-derivatives/quotes_ETHF0:USTF0_20250831
["timestamp","ask_amount","ask_price","bid_price","bid_amount"]
[1756641348984,0.488,4477.3,4477.2,0.6497]
[1756641349182,3.5044,4477.7,4477.2,0.4194]
[1756641349386,3.6958,4477.9,4477.8,0.4217]
[1756641349979,3.6958,4477.9,4477.6,0.228]
[1756641350478,0.1914,4477.7,4477.6,0.228]
[1756641350679,0.488,4477.7,4477.6,0.228]
[1756641353186,0.1914,4477.7,4476.6,3.83989382]
[1756641353489,3.3192,4477.9,4476.8,0.402]
[1756641353689,0.2966,4477.8,4476.8,0.402]
[1756641353984,3.3192,4477.9,4476.8,0.402]
[1756641354485,0.2966,4477.8,4476.8,0.402]
[1756641354889,3.3192,4477.9,4476.8,0.402]
[1756641355583,0.2966,4477.8,4476.8,0.402]
[1756641355786,0.2966,4477.8,4476.6,4.24191382]
[1756641355988,3.3192,4477.9,4476.7,0.45135]
[1756641356191,0.2966,4477.8,4476.7,0.45135]
[1756641356490,3.3192,4477.9,4476.7,0.85337]
[1756641356679,0.2966,4477.8,4476.7,0.85337]
[1756641356879,3.3192,4477.9,4476.7,0.85337]
[1756641357086,3.2078,4477.7,4476.7,0.22335]
[1756641357286,0.2966,4477.6,4476.8,0.228]
[1756641358096,0.2966,4477.6,4476.8,1.80843382]
[1756641358793,0.1914,4476.9,4476.8,1.80843382]
[1756641358995,3.2078,4477.7,4476.8,1.80843382]
[1756641359190,0.2966,4477.6,4476.8,1.80843382]
[1756641359395,3.2078,4477.7,4476.9,1.58043382]
[1756641360195,0.488,4477.0,4476.8,0.228]
[1756641360397,0.2966,4476.9,4476.8,0.228]
[1756641361097,0.488,4477.6,4477.0,0.40199]
[1756641361297,0.1914,4477.6,4477.1,1.58142328]
[1756641361498,0.1914,4477.4,4477.2,1.58142328]
[1756641361798,0.1914,4477.4,4477.3,0.228]
[1756641362203,0.488,4477.4,4477.3,1.80942328]
[1756641362402,0.488,4477.4,4477.3,0.228]
[1756641363306,0.2966,4477.3,4477.0,2.00227653]
[1756641363511,3.2078,4477.6,4476.8,0.228]
[1756641363814,0.488,4476.9,4476.8,0.228]
[1756641364305,0.1914,4476.9,4476.6,1.58400572]
[1756641364511,0.1914,4476.7,4476.6,1.58400572]
[1756641364716,0.488,4476.7,4476.6,1.81200572]
[1756641365201,0.488,4476.7,4476.6,1.58400572]
[1756641365512,0.488,4476.7,4476.6,1.81200572]
[1756641366009,0.488,4476.7,4476.6,1.58400572]
[1756641366208,0.488,4476.7,4476.6,1.81200572]
[1756641367306,0.488,4476.7,4476.6,1.58400572]
[1756641367511,0.488,4476.7,4476.6,1.81200572]
[1756641369013,0.488,4476.7,4476.6,1.58400572]
[1756641369409,0.488,4476.7,4476.6,1.81200572]
[1756641369613,0.488,4476.7,4476.6,0.228]
[1756641369915,0.1871,4476.3,4476.2,33.74200572]
[1756641370116,0.4822,4476.3,4476.2,33.74200572]
[1756641370318,0.4822,4476.3,4476.2,32.386]
[1756641372016,0.4822,4476.3,4476.2,32.158]
[1756641372213,0.4822,4476.3,4476.2,32.386]
[1756641373413,0.4066,4476.5,4476.2,32.386]
[1756641373619,0.4066,4476.5,4476.3,0.40205]
[1756641374118,0.1115,4476.5,4476.2,32.78806]
[1756641374418,0.1115,4476.5,4476.3,0.40205]
[1756641374419,0.2951,4476.4,4476.3,0.40205]
[1756641378219,0.4822,4476.4,4476.3,0.40205]
[1756641379020,0.4822,4476.4,4476.3,1.98605572]
[1756641380022,0.4822,4476.4,4476.3,1.58400572]
[1756641382125,0.2951,4476.4,4476.3,1.81200572]
[1756641383924,0.4822,4476.4,4476.3,1.81200572]
[1756641384125,0.1871,4476.4,4476.2,32.158]
[1756641384421,0.2951,4476.3,4476.2,32.158]
[1756641384628,0.4822,4476.3,4476.2,0.228]
[1756641385523,0.4822,4475.7,4475.5,1.58400572]
[1756641385824,0.4822,4475.6,4475.5,1.58400572]
[1756641386028,0.4822,4475.6,4475.5,1.81200572]
[1756641387820,0.4822,4475.6,4475.5,1.58400572]
[1756641388024,0.4822,4475.6,4475.5,1.81200572]
[1756641388325,0.4822,4475.6,4475.5,0.228]
[1756641389325,0.4822,4475.6,4475.5,1.81200572]
[1756641389526,0.4822,4475.6,4475.5,1.58400572]
[1756641389732,0.4822,4475.6,4475.5,1.81200572]
[1756641390228,0.1871,4475.6,4475.4,4.79180572]
[1756641390427,0.4822,4475.5,4475.4,4.79180572]
[1756641390631,0.4822,4475.5,4475.4,5.01980572]
[1756641391128,0.4822,4475.5,4475.4,3.4358]
[1756641392027,0.4822,4475.5,4475.4,0.228]
[1756641395829,0.2951,4475.4,4475.0,1.98617572]
[1756641396035,0.1115,4475.7,4475.0,1.58400572]
[1756641396036,0.4822,4475.1,4475.0,1.58400572]
[1756641396336,0.4822,4475.1,4475.0,1.81200572]
[1756641396636,0.4822,4475.6,4475.0,1.81200572]
[1756641396830,0.4822,4475.6,4475.0,2.21417572]
[1756641397133,0.2951,4475.5,4475.1,1.98616572]
[1756641397334,0.2951,4475.4,4475.2,0.228]
[1756641397531,0.2951,4475.3,4475.2,0.228]
[1756641398037,0.1871,4475.3,4475.2,0.228]
[1756641398238,0.1871,4475.3,4475.1,1.58400572]
[1756641398440,0.1871,4475.3,4475.2,0.228]
[1756641398637,0.4612,4475.3,4475.2,0.228]
[1756641399731,0.2741,4475.3,4475.2,0.228]
[1756641400135,0.4599,4475.3,4475.2,0.228]
[1756641400337,0.2741,4475.3,4475.2,0.228]
[1756641400836,0.1858,4475.3,4475.1,1.58400572]
[1756641401140,0.4599,4475.2,4475.1,1.58400572]
[1756641401346,0.2741,4475.2,4475.1,1.81200572]
[1756641401536,0.2741,4475.2,4475.1,1.58400572]
[1756641401734,0.2741,4475.2,4475.1,1.81200572]
[1756641405143,0.4599,4475.2,4475.1,1.58400572]
[1756641405342,0.4599,4475.2,4475.1,1.81200572]
[1756641406143,0.4599,4475.2,4475.1,1.58400572]
[1756641406541,0.4599,4475.2,4475.1,1.81200572]
[1756641406742,0.4599,4475.2,4475.1,1.58400572]
[1756641406942,0.4599,4475.2,4475.0,1.58400572]
[1756641407249,0.4599,4475.1,4475.0,1.58400572]
[1756641407946,0.4599,4475.1,4475.0,1.81200572]
[1756641408237,0.4599,4475.1,4475.0,0.228]
[1756641410548,0.2741,4475.1,4475.0,0.228]
[1756641410740,0.4599,4475.6,4475.0,0.228]
[1756641411246,0.4599,4475.6,4475.0,0.63017]
[1756641411441,0.2741,4475.5,4475.2,0.40215]
[1756641411644,0.1858,4475.6,4475.3,0.228]
[1756641411946,0.2741,4475.8,4475.3,0.228]
[1756641412251,3.2078,4475.9,4475.4,0.40213]
[1756641412547,0.4599,4475.8,4475.5,0.228]
[1756641413145,0.5714,4475.8,4475.5,0.228]
[1756641416048,0.2973,4475.8,4475.5,0.63012]
[1756641416249,0.1858,4475.7,4475.5,0.63012]
[1756641416457,0.4599,4475.6,4475.5,0.63012]
[1756641416749,0.4599,4475.6,4475.5,0.228]
[1756641420348,0.1115,4475.8,4475.6,0.40212]
[1756641420553,0.3856,4475.8,4475.6,0.40212]
[1756641421054,0.2741,4475.7,4475.6,0.40212]
[1756641422353,0.1115,4475.8,4475.6,4.62555]
[1756641422543,0.1858,4477.6,4477.0,0.40199]
[1756641422748,0.4599,4477.4,4477.3,3.2078]
[1756641423749,1.19932067,4480.0,4477.7,0.40193]
[1756641423750,0.1858,4477.8,4477.7,0.40193]
[1756641424057,0.4599,4478.3,4477.7,0.228]
[1756641424353,0.4599,4478.2,4478.1,3.2078]
[1756641424559,0.4599,4478.2,4478.1,3.4358]
[1756641427856,0.2741,4478.2,4478.1,3.4358]
[1756641429560,0.4683,4478.2,4478.1,3.4358]
[1756641431061,0.4683,4478.2,4478.1,3.2078]
[1756641431261,0.4683,4478.2,4478.1,3.4358]
[1756641431459,0.4683,4478.2,4478.1,3.2078]
[1756641431759,0.4683,4478.2,4478.1,3.4358]
[1756641432465,0.4683,4478.2,4478.1,0.228]
[1756641432964,0.4773,4477.5,4477.4,3.2078]
[1756641433164,0.4773,4477.5,4477.4,3.4358]
[1756641433462,0.4773,4477.5,4477.4,3.38519195]
[1756641433665,0.4773,4477.5,4477.4,3.4358]
[1756641434164,0.4773,4477.5,4477.4,3.2078]
[1756641434470,0.4773,4477.5,4477.4,3.4358]
[1756641434764,0.4773,4477.5,4477.4,3.2078]
[1756641434956,0.4773,4477.5,4477.4,3.4358]
[1756641444062,0.4773,4477.5,4477.4,3.2078]
[1756641444263,0.4773,4477.5,4477.4,3.4358]
[1756641445267,0.2831,4477.5,4477.4,3.4358]
[1756641445466,3.2078,4478.6,4477.4,3.4358]
[1756641445665,0.2831,4478.4,4477.5,0.40194]
[1756641445867,0.2831,4478.4,4477.6,0.228]
[1756641446063,0.2831,4478.2,4477.6,0.62993]
[1756641446264,0.2831,4478.4,4477.6,0.62993]
[1756641446456,0.22331,4478.5,4477.6,0.62993]
[1756641446658,0.2831,4478.5,4477.9,3.2078]
[1756641446861,0.4773,4478.3,4478.0,0.228]
[1756641449766,0.1942,4478.3,4478.1,0.40189]
[1756641449966,0.4773,4478.2,4478.1,0.40189]
[1756641450269,0.4773,4478.2,4478.1,0.62989]
[1756641450571,0.4773,4478.2,4478.1,0.228]
[1756641453374,0.2831,4478.2,4478.1,0.228]
[1756641453977,0.1942,4478.6,4478.5,0.40185]
[1756641454177,0.4773,4478.6,4478.5,0.62985]
[1756641454382,0.1942,4478.9,4478.5,0.228]
[1756641454581,0.4773,4478.8,4478.7,0.40183]
[1756641454778,0.4773,4478.8,4478.7,0.62883]
[1756641455479,0.2831,4478.8,4478.7,0.62883]
[1756641455980,0.4773,4478.8,4478.7,0.227]
[1756641458289,0.2831,4478.8,4478.7,0.227]
[1756641458483,3.2078,4479.8,4478.7,0.227]
[1756641458484,3.2078,4479.8,4478.8,0.40183]
[1756641458684,0.2822,4478.9,4478.8,0.40183]
[1756641459286,0.481,4478.9,4478.8,0.40183]
[1756641459791,0.1988,4478.9,4478.7,0.227]
[1756641459992,0.2822,4478.8,4478.7,0.227]
[1756641461190,0.481,4478.8,4478.7,0.227]
[1756641461691,0.481,4478.8,4478.6,0.40184]
[1756641461692,0.1988,4478.8,4478.4,3.60966]
[1756641461886,0.1988,4478.6,4478.5,0.227]
[1756641462085,0.481,4478.5,4478.4,3.2078]
[1756641462286,0.481,4478.5,4478.4,3.4348]
[1756641464396,0.481,4478.5,4478.4,3.2078]
[1756641464689,0.2822,4478.4,4477.9,35.3658]
[1756641464989,0.481,4478.0,4477.9,35.3658]
[1756641465193,0.481,4478.0,4477.9,3.2078]
[1756641465389,0.481,4478.0,4477.9,2.9051]
[1756641465390,4.70432001,4478.0,4477.9,2.9051]
[1756641465595,7.91212001,4478.0,4476.9,5.19054851]
[1756641465795,0.481,4477.1,4477.0,0.227]
[1756641467593,0.481,4477.0,4476.9,3.2078]
[1756641467798,0.481,4477.0,4476.9,0.227]
[1756641467999,0.1988,4476.5,4476.4,3.3909]
[1756641468295,0.481,4476.5,4476.4,3.5726826]
[1756641468495,0.481,4476.5,4476.4,3.9204]
[1756641469496,0.481,4476.5,4476.4,3.6934]
[1756641469696,0.481,4476.5,4476.4,3.9204]
[1756641471003,0.481,4476.5,4476.4,3.6934]
[1756641471404,0.481,4476.5,4476.4,3.9204]
[1756641471700,0.481,4476.5,4476.4,3.2078]
[1756641471903,0.481,4476.5,4476.4,3.4348]
[1756641472307,0.481,4476.5,4476.4,3.2078]
[1756641472509,0.481,4476.5,4476.4,3.4348]
[1756641474210,0.481,4476.5,4476.4,3.9204]
[1756641474609,0.481,4476.5,4476.4,3.6179]
[1756641474810,0.481,4476.5,4476.4,3.4348]
[1756641475111,0.481,4476.5,4476.4,3.2078]
[1756641475314,0.481,4476.5,4476.4,3.7373]
[1756641475515,0.481,4476.5,4476.4,3.9204]
[1756641477915,0.481,4476.5,4476.4,3.6934]
[1756641478209,0.481,4476.5,4476.4,3.9204]
[1756641480014,0.0113,4476.8,4476.4,3.9204]
[1756641480215,0.0113,4476.8,4476.7,0.1831]
[1756641480416,0.0113,4476.8,4476.7,0.7126]
[1756641481720,0.4923,4476.8,4476.7,0.7126]
[1756641483724,0.0113,4476.8,4476.7,0.7126]
[1756641485411,3.2078,4477.5,4476.7,0.7126]
[1756641485616,0.2822,4477.8,4477.7,0.1831]
[1756641485918,0.2822,4477.8,4477.7,0.7126]
[1756641486813,0.481,4477.8,4477.7,0.7126]
[1756641490123,0.1988,4477.8,4477.7,0.7126]
[1756641491020,3.2078,4478.0,4477.7,0.4101]
[1756641491228,3.2078,4478.0,4477.9,0.194]
[1756641491724,3.2078,4478.0,4477.9,0.4908]
[1756641493924,3.2078,4478.0,4477.7,0.227]
[1756641493925,3.3942,4478.5,4478.4,0.194]
[1756641494126,3.67,4478.5,4478.4,0.4908]
[1756641495124,0.4622,4478.5,4478.4,0.4908]
[1756641499730,0.2758,4478.8,4478.4,0.4908]
[1756641499933,3.2078,4479.0,4478.9,0.4908]
[1756641500430,3.67,4479.0,4478.9,0.4908]
[1756641502028,3.2078,4479.0,4478.9,0.4908]
[1756641502634,3.4836,4479.0,4478.9,0.4908]
[1756641503138,3.67,4479.0,4478.9,0.4908]
[1756641503527,0.2758,4479.3,4478.9,0.4908]
[1756641503726,0.4622,4479.5,4479.4,0.194]
[1756641503922,0.4622,4479.5,4479.4,0.4908]
[1756641505329,0.4622,4479.5,4478.6,3.2078]
[1756641505530,0.2758,4479.4,4478.7,0.2968]
[1756641507734,0.2758,4479.4,4478.8,0.227]
[1756641507937,0.4622,4479.0,4478.9,0.4908]
[1756641508633,3.2078,4479.6,4479.0,0.2968]
[1756641508831,3.3942,4479.6,4479.5,0.4908]
[1756641509234,3.67,4479.6,4479.5,0.4908]
[1756641510438,3.67,4479.6,4479.5,0.194]
[1756641510738,0.2758,4479.5,4478.7,0.2968]
[1756641510935,0.4622,4479.0,4478.9,0.7178]
[1756641514644,0.4622,4479.0,4478.9,0.4908]
[1756641517241,0.1864,4478.5,4478.4,0.4908]
[1756641517446,0.1864,4478.2,4478.1,0.421]
[1756641517746,0.4622,4478.2,4478.1,0.7178]
[1756641518948,0.4749,4478.8,4478.7,0.1967]
[1756641519247,0.4749,4478.8,4478.7,0.4961]
[1756641521957,0.4749,4478.8,4478.2,0.2994]
[1756641523253,0.4749,4478.8,4478.4,0.2994]
[1756641523453,0.4749,4478.8,4478.2,0.227]
[1756641523645,0.2842,4478.7,4478.1,0.227]
[1756641523841,0.1907,4478.2,4478.1,0.4237]
[1756641524149,0.4749,4478.2,4478.1,0.7231]
[1756641525052,0.4749,4478.8,4478.7,0.4961]
[1756641525754,0.4749,4478.8,4478.2,0.2994]
[1756641530752,0.4749,4478.8,4478.7,0.4961]
[1756641531257,0.4749,4478.8,4478.1,0.227]
[1756641531459,0.4749,4478.8,4478.2,0.2994]
[1756641531846,0.4749,4478.8,4478.3,0.227]
[1756641532155,0.4749,4478.8,4478.5,0.2994]
[1756641537861,0.4749,4478.8,4478.3,0.227]
[1756641538060,0.1907,4478.8,4478.0,0.2994]
[1756641538262,0.1907,4478.8,4478.7,0.1967]
[1756641538462,0.1907,4478.8,4478.7,0.4961]
[1756641538865,0.4749,4478.8,4478.7,0.4961]
[1756641553275,3.4897,4478.9,4478.7,0.1967]
[1756641553474,0.4699,4478.9,4478.8,0.4745]
[1756641558784,3.2078,4479.4,4478.8,0.4745]
[1756641558984,0.188,4479.0,4478.9,0.4745]
[1756641559181,0.4699,4479.0,4478.9,0.4745]
[1756641563988,0.188,4479.0,4478.9,0.4745]
[1756641564488,0.4699,4479.0,4478.9,0.4745]
[1756641565987,0.188,4479.0,4478.0,1.98274851]
[1756641566186,0.4699,4478.5,4478.4,0.7015]
[1756641566991,0.4699,4478.5,4478.4,0.4745]
[1756641572297,0.2819,4478.8,4478.4,0.4745]
[1756641572492,3.2078,4478.9,4478.8,0.4745]
[1756641573501,3.4897,4478.9,4478.8,0.4745]
[1756641573700,3.6777,4478.9,4478.8,0.4745]
[1756641575504,0.4699,4478.9,4478.8,0.4745]
[1756641576394,0.188,4478.9,4478.8,0.4745]
[1756641577104,0.4699,4479.1,4479.0,0.1916]
[1756641577304,0.4699,4479.1,4479.0,0.4745]
[1756641580302,3.2078,4479.5,4479.1,0.2986]
[1756641580501,3.62395,4479.5,4479.4,0.1917]
[1756641580700,3.4007,4479.5,4479.4,0.4903]
[1756641581105,3.7023,4479.5,4479.4,0.4903]
[1756641583902,3.4007,4479.5,4479.0,0.40181]
[1756641584210,0.4945,4479.2,4479.1,0.4903]
[1756641593817,0.3016,4479.1,4478.7,0.5256]
[1756641594116,0.1929,4478.3,4478.2,0.4187]
[1756641594315,0.4945,4478.3,4478.2,0.4187]
[1756641594713,0.4945,4478.3,4478.2,0.4903]
[1756641594912,0.1929,4478.1,4478.0,0.2986]
[1756641595118,0.4945,4478.1,4478.0,0.2986]
[1756641595313,0.1929,4478.1,4477.9,3.5064]
[1756641595514,0.227,4478.8,4477.9,3.5064]
[1756641595515,0.4945,4478.0,4477.9,3.5064]
[1756641595715,0.4945,4478.0,4477.9,3.2078]
[1756641596921,0.4945,4478.0,4477.9,3.5064]
[1756641597720,0.4945,4478.0,4477.9,3.6981]
[1756641598722,0.4945,4478.0,4477.9,0.4903]
[1756641601219,0.4945,4478.0,4476.9,1.98274851]
[1756641601220,0.1929,4477.2,4476.9,1.98274851]
[1756641601412,0.4945,4477.1,4477.0,0.4903]
[1756641601613,0.4945,4477.1,4476.3,0.2986]
[1756641601925,0.3016,4477.1,4476.6,0.1917]
[1756641602123,3.2078,4477.2,4477.1,0.1917]
[1756641602419,3.4007,4477.2,4476.3,0.2986]
[1756641602623,0.4945,4476.7,4476.6,0.4903]
[1756641603721,3.5094,4477.2,4476.6,0.1917]
[1756641603920,3.4007,4477.2,4477.1,0.4903]
[1756641604113,3.7023,4477.2,4477.1,0.4903]
[1756641604319,3.7023,4477.2,4476.3,0.2986]
[1756641604513,3.7023,4476.7,4476.0,3.2078]
[1756641604722,3.7023,4476.7,4476.3,0.2986]
[1756641604920,3.7023,4476.7,4476.2,0.227]
[1756641605121,3.7023,4476.7,4476.3,0.2986]
[1756641605619,3.4007,4476.7,4476.6,0.1917]
[1756641605820,3.7023,4476.7,4476.6,0.4903]
[1756641611524,3.2078,4477.2,4477.0,0.40199]
[1756641611822,0.4751,4477.7,4477.6,0.1916]
[1756641612022,0.4751,4477.7,4477.6,0.4683]
[1756641612625,3.6829,4477.7,4477.6,0.4683]
[1756641612930,3.3935,4477.7,4477.6,0.4683]
[1756641613622,3.6829,4477.7,4477.6,0.4683]
[1756641619737,0.2894,4477.6,4476.2,0.2767]
[1756641619937,0.2894,4476.7,4476.2,0.2767]
[1756641620137,0.4751,4476.7,4476.6,0.1916]
[1756641620332,0.2894,4476.6,4476.2,0.2767]
[1756641620527,0.4751,4476.3,4476.2,0.4683]
[1756641622933,3.3935,4476.8,4476.7,0.1916]
[1756641623139,3.6829,4476.8,4476.7,0.4683]
[1756641626635,0.2894,4477.2,4476.8,0.2767]
[1756641626844,3.4348,4477.3,4476.8,0.4683]
[1756641626845,0.4751,4476.9,4476.8,0.4683]
[1756641633342,1.59909423,4479.3,4477.3,0.2767]
[1756641633343,3.4972,4477.8,4477.3,0.2767]
[1756641633547,3.6829,4477.8,4477.7,0.4683]
[1756641636446,3.6829,4477.8,4477.3,0.2767]
[1756641636841,3.6829,4477.8,4475.7,1.00526]
[1756641636842,0.4751,4476.7,4476.6,0.4683]
[1756641637049,0.2894,4477.7,4476.7,0.2767]
[1756641637252,0.2894,4476.7,4476.1,34.42744851]
[1756641637442,0.4751,4476.2,4476.1,32.4447]
[1756641637851,0.274,4476.1,4475.8,0.294]
[1756641638051,3.2078,4476.5,4475.8,0.521]
[1756641638052,0.4717,4475.9,4475.8,0.521]
[1756641638454,0.4717,4475.9,4475.8,0.7067]
[1756641638953,0.1977,4475.9,4475.8,0.7067]
[1756641639143,0.4717,4475.9,4475.8,0.7067]
[1756641641756,0.4717,4475.9,4475.8,0.4797]
[1756641642053,0.4717,4475.9,4475.8,0.7067]
[1756641643459,0.1977,4475.9,4475.8,0.7067]
[1756641644158,0.4717,4475.9,4475.8,0.7067]
[1756641645258,0.4717,4475.9,4475.8,0.4797]
[1756641646355,0.4717,4475.9,4475.8,0.7067]
[1756641647553,0.4717,4475.9,4475.4,3.2078]
[1756641647855,0.4717,4475.6,4475.5,0.7067]
[1756641648353,0.4717,4475.7,4475.6,0.4797]
[1756641648560,0.22341001,4476.4,4475.6,0.4797]
[1756641648753,0.4717,4476.3,4476.2,0.4797]
[1756641654863,3.2078,4476.5,4476.3,0.294]
[1756641655067,3.6795,4477.1,4477.0,0.1857]
[1756641655266,3.6795,4477.1,4477.0,0.4797]
[1756641655863,3.4055,4477.6,4477.5,0.4797]
[1756641656062,3.4055,4477.6,4476.6,0.40202]
[1756641656263,3.4055,4477.6,4477.5,0.1857]
[1756641656463,3.6795,4477.6,4477.5,0.4797]
[1756641660271,3.6795,4477.6,4476.9,0.294]
[1756641661169,0.1977,4476.6,4476.5,0.4797]
[1756641661366,0.4717,4476.6,4476.5,0.4797]
[1756641662267,0.274,4477.0,4476.9,0.1857]
[1756641662672,0.274,4477.6,4477.0,0.294]
[1756641662977,0.4717,4477.6,4477.5,0.4797]
[1756641664965,1.19932067,4479.6,4477.5,0.4797]
[1756641664966,3.4818,4478.2,4478.1,0.1857]
[1756641665171,3.6795,4478.2,4478.1,0.4797]
[1756641666172,0.4717,4477.5,4477.4,0.4797]
[1756641667474,3.6795,4478.2,4478.1,0.4797]
[1756641668578,0.2875,4478.1,4477.6,0.2856]
[1756641668876,0.4862,4477.7,4477.6,0.4742]
[1756641669278,0.2875,4478.0,4477.9,0.1886]
[1756641669473,0.4862,4478.0,4477.9,0.4742]
[1756641671176,3.4953,4478.2,4477.9,0.1886]
[1756641671376,3.694,4478.2,4478.1,0.1886]
[1756641671579,3.694,4478.2,4478.1,0.4742]
[1756641673076,0.4862,4477.7,4477.6,0.2856]
[1756641673375,3.2078,4477.7,4476.6,0.2856]
[1756641673575,0.4862,4476.7,4476.6,0.4742]
[1756641673877,0.2875,4476.6,4476.1,0.2856]
[1756641674080,0.107,4477.1,4476.1,0.2856]
[1756641674081,3.2078,4477.2,4476.6,0.1886]
[1756641674284,3.694,4477.2,4477.1,0.4742]
[1756641674677,3.2078,4477.2,4477.1,0.4742]
[1756641674974,3.4065,4477.2,4477.1,0.4742]
[1756641675279,3.694,4477.2,4477.1,0.4742]
[1756641677079,0.2875,4477.1,4476.5,0.2856]
[1756641677376,0.2875,4476.5,4476.2,0.227]
[1756641677581,0.4862,4476.3,4476.2,0.7012]
[1756641677976,0.1987,4476.3,4476.2,0.7012]
[1756641678181,0.2875,4476.6,4476.3,0.2856]
[1756641678383,0.4862,4476.6,4476.5,0.1886]
[1756641678583,0.4862,4476.6,4476.5,0.4742]
[1756641678783,0.4862,4476.6,4476.5,0.1886]
[1756641679385,0.4862,4476.6,4476.5,0.4742]
[1756641679583,0.4862,4476.1,4476.0,3.682]
[1756641679785,0.4862,4476.1,4476.0,0.4742]
[1756641679979,0.4862,4476.1,4476.0,0.7012]
[1756641681979,0.2875,4476.0,4475.8,0.227]
[1756641682186,0.4862,4475.9,4475.8,0.7012]
[1756641682387,0.4862,4475.9,4475.8,0.1886]
[1756641682687,0.4862,4475.7,4475.6,0.7012]
[1756641683179,0.4862,4475.7,4475.6,0.4742]
[1756641684179,0.4862,4475.5,4475.4,32.4516]
[1756641684384,0.4862,4475.5,4475.4,32.166]
[1756641684781,0.4862,4475.5,4475.4,0.2856]
[1756641684987,0.4862,4475.5,4475.4,0.4742]
[1756641688590,0.1987,4475.1,4475.0,3.4934]
[1756641688887,0.1987,4475.1,4475.0,3.909]
[1756641688888,0.4862,4475.1,4475.0,3.909]
[1756641689589,0.4862,4475.1,4475.0,3.682]
[1756641689988,0.2875,4475.4,4475.0,3.682]
[1756641690185,0.2875,4475.7,4475.1,0.2856]
[1756641690385,0.4862,4475.2,4475.1,0.4742]
[1756641695395,3.2078,4475.5,4475.4,0.1886]
[1756641695586,3.2078,4475.5,4475.4,0.4742]
[1756641695991,3.694,4475.5,4475.4,0.4742]
[1756641698597,3.694,4475.5,4474.9,0.227]
[1756641698895,3.7028,4475.5,4475.4,0.4692]
[1756641700895,3.7028,4475.5,4474.8,0.227]
[1756641701700,0.2963,4475.4,4474.8,0.62919]
[1756641702000,0.4891,4475.4,4474.8,0.227]
[1756641702900,0.1928,4474.8,4474.7,0.4226]
[1756641703099,0.4891,4474.8,4474.7,0.6962]
[1756641705196,0.1928,4474.6,4474.5,3.7084]
[1756641705392,0.4891,4474.6,4474.5,3.904]
[1756641705703,0.4891,4474.6,4474.5,3.4348]
[1756641705896,0.4891,4474.6,4474.5,0.227]
[1756641706402,0.4891,4474.6,4474.5,0.6962]
[1756641706599,0.4891,4474.2,4474.1,0.10281282]
[1756641706899,3.6969,4474.2,4474.1,0.10281282]
[1756641711397,3.6969,4474.2,4474.1,0.57201282]
[1756641715003,3.6969,4474.2,4474.1,0.10281282]
[1756641718006,3.9239,4474.2,4474.1,0.10281282]
[1756641724705,3.9239,4474.2,4472.6,0.2736]
[1756641724706,0.2963,4474.1,4472.6,0.2736]
[1756641724903,3.5041,4473.1,4472.6,0.4692]
[1756641725105,3.2078,4473.1,4473.0,0.4692]
[1756641725307,0.7161,4473.7,4473.6,0.4692]
[1756641725605,0.7161,4473.7,4473.6,0.1956]
[1756641725907,0.2963,4473.6,4472.5,0.2736]
[1756641726110,0.2963,4473.4,4472.7,0.2736]
[1756641726406,0.1928,4472.8,4472.7,0.4692]
[1756641726709,0.4891,4472.8,4472.7,0.4692]
[1756641728813,0.4891,4472.8,4472.7,0.1956]
[1756641729612,0.4891,4472.8,4472.4,0.2999]
[1756641729808,0.4891,4472.8,4472.2,0.2999]
[1756641731314,0.4891,4472.8,4472.7,0.4918]
[1756641731708,3.4348,4473.3,4472.7,0.1919]
[1756641731905,0.4767,4473.2,4473.1,0.4918]
[1756641732816,0.4767,4473.2,4473.1,0.1919]
[1756641733017,0.4767,4473.2,4473.1,0.4918]
[1756641733714,0.4767,4473.2,4472.2,0.2999]
[1756641733915,0.4767,4473.2,4473.1,0.4918]
[1756641737915,0.4767,4473.2,4472.3,3.2078]
[1756641738121,0.4767,4472.5,4472.4,0.4918]
[1756641739717,0.4767,4472.5,4472.4,0.1919]
[1756641740821,0.4767,4472.5,4472.4,0.4918]
[1756641742020,0.2917,4472.4,4472.3,3.2078]
[1756641742326,0.4767,4472.4,4472.3,0.4918]
[1756641745122,3.2078,4472.7,4471.6,0.4918]
[1756641745123,0.4767,4471.7,4471.6,0.4918]
[1756641745626,0.185,4471.7,4471.6,0.4918]
[1756641746022,0.2917,4472.1,4471.7,0.2999]
[1756641746331,0.4767,4472.1,4472.0,0.4918]
[1756641748129,0.4767,4472.1,4472.0,0.1919]
[1756641748429,0.2917,4472.0,4471.3,0.2999]
[1756641750632,0.185,4471.4,4471.3,0.4918]
[1756641750933,0.4767,4471.4,4471.3,0.4918]
[1756641751229,0.185,4471.4,4471.3,0.4918]
[1756641752218,0.2917,4471.7,4471.3,0.4918]
[1756641752423,3.2078,4472.7,4471.7,0.70237]
[1756641752627,0.4767,4472.6,4472.5,0.4918]
[1756641755127,0.4767,4472.5,4472.4,0.4918]
[1756641756622,0.2917,4472.4,4471.8,0.2999]
[1756641756826,0.4767,4471.9,4471.8,0.4918]
[1756641758020,0.4767,4471.9,4471.8,0.1919]
[1756641758225,0.4767,4471.9,4471.8,0.4764]
[1756641758624,0.4767,4471.9,4471.8,0.1919]